Workbook

Sheet Patí a Vela
B2: Classificació XIII Trofeu GERARDO
E3: Classe: Patí a Vela
E5: Prova nº | F5: 1 | H5: 2
E6: Vent (Bf.) | F6: 1 | H6: 1
E7: Sortits
E8: Data | F8: 2018-05-05 | H8: 2018-05-06
B9: Pos. | C9: Nº vela | D9: Patró | E9: Club | F9: Lloc | G9: Punts | H9: Lloc | I9: Punts | J9: Total
B10: 1 | C10: 2781 | D10: Oriol MAHIQUES | E10: Club Nàutic de Sitges | F10: 2 | G10: 2 | H10: 1 | I10: 1 | J10: =+G10+I10 -> 3
B11: =B10+1 -> 2 | C11: 13 | D11: Julián VINUE | E11: Club Nàutic de Sitges | F11: 4 | G11: 4 | H11: 4 | I11: 4 | J11: =+G11+I11 -> 8
B12: 3 | C12: 14 | D12: Josep Maria ROBERT | E12: Club Nàutic de Sitges | F12: 8 | G12: 8 | H12: 3 | I12: 3 | J12: =+G12+I12 -> 11
B13: 4 | C13: 7 | D13: Jan Heuninck | E13: Club Nàutic de Sitges | F13: 7 | G13: 7 | H13: 5 | I13: 5 | J13: =+G13+I13 -> 12
B14: 5 | C14: 13 | D14: Oriol CASTELLA | E14: Club Nàutic de Sitges | F14: 1 | G14: 1 | H14: 12 | I14: 12 | J14: =+G14+I14 -> 13
B15: 6 | C15: 75 | D15: Marc SERRA | E15: Club Nàutic de Sitges | F15: 5 | G15: 5 | H15: 11 | I15: 11 | J15: =+G15+I15 -> 16
B16: 7 | C16: 39 | D16: Marcos Comamala | E16: Club Nàutic de Sitges | F16: 11 | G16: 11 | H16: 7 | I16: 7 | J16: =+G16+I16 -> 18
B17: 8 | C17: 2110 | D17: Fernando BLASCO ROMEU | E17: Club Nàutic de Sitges | F17: DNS | G17: 18 | H17: 2 | I17: 2 | J17: =+G17+I17 -> 20
B18: 9 | C18: 2891 | D18: Florenci Almunia | E18: Club Nàutic de Sitges | F18: 10 | G18: 10 | H18: 10 | I18: 10 | J18: =+G18+I18 -> 20
B19: 10 | C19: 2941 | D19: Yannick MARQUEZ | E19: Club Nàutic de Sitges | F19: 3 | G19: 3 | H19: DNS | I19: 18 | J19: =+G19+I19 -> 21
B20: 12 | C20: 2859 | D20: Angel Serrano | E20: Club Nàutic de Sitges | F20: DNS | G20: 15 | H20: 8 | I20: 8 | J20: =+G20+I20 -> 23
B21: 13 | C21: 2383 | D21: Estrella Martinez | E21: Club Nàutic de Sitges | F21: 6 | G21: 6 | H21: OCS | I21: 18 | J21: =+G21+I21 -> 24
B22: 14 | C22: 6 | D22: Oriol PUIG PUIG | E22: Club de Mar de Sitges | F22: DNS | G22: 18 | H22: 6 | I22: 6 | J22: =+G22+I22 -> 24
B23: 15 | C23: 3209 | D23: Ricard Plaza | E23: Club Nàutic de Sitges | F23: 9 | G23: 9 | H23: DNS | I23: 18 | J23: =+G23+I23 -> 27
B24: 16 | C24: 2807 | D24: Joan Lluís ROYO | E24: Club Nàutic de Sitges | F24: DNS | G24: 18 | H24: 9 | I24: 9 | J24: =+G24+I24 -> 27
B25: 17 | C25: 2899 | D25: Agusti LUENGO | E25: Club Nàutic de Sitges | F25: 12 | G25: 12 | H25: DNS | I25: 18 | J25: =+G25+I25 -> 30
J26: =+G26+I26 -> 0
J27: 0
J28: 0
B30: En caso de empate
C31: 1 | D31: El que tingui millor resultat en qualsevol de les proves
C32: 2 | D32: Si continua l'empat, el que hagi realitzat millor possició a la darrera prova

Sheet PJ
B2: Classificació XIII Trofeu GERARDO
E3: Classe: Patí JUNIOR
E5: Prova nº | F5: 1 | H5: 2
E6: Vent (Bf.)
E7: Sortits
E8: Data | F8: 2018-05-05 | H8: 2018-05-06
B9: Pos. | C9: Nº vela | D9: Patró | E9: Club | F9: Lloc | G9: Punts | H9: Lloc | I9: Punts | J9: Total
B10: 1 | C10: 150 | D10: Jan Lázaro | E10: Club Nàutic de Sitges | F10: 1 | G10: 1 | H10: 3 | I10: 3 | J10: =+G10+I10 -> 4
B11: =B10+1 -> 2 | C11: 165 | D11: Jan Marc Pascual | E11: Club Nàutic de Sitges | F11: 2 | G11: 2 | H11: 2 | I11: 2 | J11: =+G11+I11 -> 4
B12: 3 | C12: 135 | D12: Jan TARONJI | E12: Club Nàutic de Sitges | F12: 4 | G12: 4 | H12: 1 | I12: 1 | J12: =+G12+I12 -> 5
B13: 4 | C13: 219 | D13: Zoa Massana | E13: Club de Mar de Sitges | F13: 5 | G13: 5 | H13: 4 | I13: 4 | J13: =+G13+I13 -> 9
B14: 5 | C14: 174 | D14: Mar VILARDELL | E14: Club Nàutic de Sitges | F14: 3 | G14: 3 | H14: 7 | I14: 7 | J14: =+G14+I14 -> 10
B15: 6 | C15: 189 | D15: Victor Sans | E15: Club Nàutic de Sitges | F15: 8 | G15: 8 | H15: 6 | I15: 6 | J15: =+G15+I15 -> 14
B16: 7 | C16: 218 | D16: Leonardo Adreoli | E16: Club Nàutic de Sitges | F16: 9 | G16: 9 | H16: 5 | I16: 5 | J16: =+G16+I16 -> 14
B17: 8 | C17: 159 | D17: Teo Mercade | E17: Club de Mar de Sitges | F17: 6 | G17: 6 | H17: 9 | I17: 9 | J17: =+G17+I17 -> 15
B18: 9 | C18: 188 | D18: Bet Vila / Ines | E18: Club Nàutic de Sitges | F18: 7 | G18: 7 | H18: 11 | I18: 11 | J18: =+G18+I18 -> 18
B19: 10 | C19: 169 | D19: Lucia Tartajada | E19: Club Nàutic de Sitges | F19: 10 | G19: 10 | H19: 10 | I19: 10 | J19: =+G19+I19 -> 20
B20: 11 | C20: 9 | D20: Gala Sanchez | E20: Club de Mar de Sitges | F20: DNS | G20: 17 | H20: 8 | I20: 8 | J20: =+G20+I20 -> 25
B21: 12 | C21: 8 | D21: Andrea Montero | E21: Club de Mar de Sitges | F21: DNS | G21: 17 | H21: 12 | I21: 12 | J21: =+G21+I21 -> 29
B22: 13 | C22: 199 | D22: Theo Dedios | E22: Club de Mar de Sitges | F22: DNS | G22: 17 | H22: 13 | I22: 13 | J22: =+G22+I22 -> 30
B23: 14 | D23: Cintia Valentí | E23: Club Nàutic de Sitges | F23: DNS | G23: 17 | H23: 14 | I23: 14 | J23: =+G23+I23 -> 31
B24: 15 | C24: 198 | D24: Ignacio Dedios | E24: Club de Mar de Sitges | F24: DNS | G24: 17 | H24: DNS | I24: 17 | J24: =+G24+I24 -> 34
B25: 16 | D25: Jordi Sans | E25: Club Nàutic de Sitges | F25: DNS | G25: 17 | H25: DNS | I25: 17 | J25: =+G25+I25 -> 34
B26: 17 | D26: Ana Vila | E26: Club Nàutic de Sitges | F26: DNS | G26: 17 | H26: DNS | I26: 17 | J26: =+G26+I26 -> 34
B28: En caso de empate
C29: 1 | D29: El que tingui millor resultat en qualsevol de les proves
C30: 2 | D30: Si continua l'empat, el que hagi realitzat millor possició a la darrera prova

Sheet CATA
B2: Classificació XIII Trofeu GERARDO
F3: Classe: CATAMARÀ
F5: Prova nº | G5: 1 | I5: 2
F6: Vent (Bf.) | G6: 1 / 2 | I6: 1 / 2
F7: Sortits | G7: 1
F8: Data | G8: 2017-04-15 | I8: 2017-04-16
B9: Pos. | C9: Nº vela | D9: Patró / tripulant | E9: Embarcació | F9: Club | G9: Lloc | H9: Punts | I9: Lloc | J9: Punts | K9: Total
B10: 1 | C10: 3415 | D10: Albert Girones / Ivan Garcia | E10: Hobie Tiger | F10: Club Nàutic de Sitges | G10: 1 | H10: 1 | I10: 3 | J10: 3 | K10: =H10+J10 -> 4
B11: 2 | C11: 15 | D11: Adolfo Jimenez | E11: Dart 15 / Srint 15 DX | F11: Club Nàutic de Sitges | G11: 3 | H11: 3 | I11: 2 | J11: 2 | K11: =H11+J11 -> 5
B12: 3 | C12: 451 | D12: Antonio Roca | E12: Topcat k2 | F12: Club Nàutic de Sitges | G12: DNS | H12: 7 | I12: 1 | J12: 1 | K12: =H12+J12 -> 8
B13: 4 | C13: 4 | D13: DAVID MARTINEZ | E13: Classe A | F13: Club Nàutic de Sitges | G13: 2 | H13: 2 | I13: DNS | J13: 7 | K13: =H13+J13 -> 9
B14: 5 | C14: ES75 | D14: Frank Krumbiegel | E14: Classe A | F14: Club Nàutic de Sitges | G14: 4 | H14: 4 | I14: 5 | J14: 5 | K14: =H14+J14 -> 9
B15: 6 | D15: Alex Lago | E15: FX One | F15: Club Nàutic de Sitges | G15: DNS | H15: 7 | I15: 4 | J15: 4 | K15: =H15+J15 -> 11
B16: 7
B18: En caso de empate
C19: 1 | D19: El que tingui millor resultat en qualsevol de les proves
C20: 2 | D20: Si continua l'empat, el que hagi realitzat millor possició a la darrera prova
D27: RATINGS | G27: TEMPS REGATA | J27: TEMPS | K27: RATING | L27: TEMPS | M27: RESULTAT
G28: HORES | H28: MINUTS | I28: SEGONS | J28: Segons | L28: COMP
G29: Hores | H29: Minuts | I29: Segons
D30: Albert Girones / Ivan Garcia | E30: Hobie Tiger | G30: 0 | H30: 41 | I30: 0 | J30: =(G30*3600+H30*60+I30) -> 2460 | K30: 1 | L30: =J30/K30 -> 2460 | N30: 1
D31: DAVID MARTINEZ | E31: Classe A | G31: 0 | H31: 58 | I31: 45 | J31: =(G31*3600+H31*60+I31) -> 3525 | K31: 1.002 | L31: =J31/K31 -> 3517.964072 | N31: 2
D32: Adolfo Jimenez | E32: Dart 15 / Srint 15 DX | G32: 1 | H32: 12 | I32: 0 | J32: =(G32*3600+H32*60+I32) -> 4320 | K32: 1.21 | L32: =J32/K32 -> 3570.247934 | N32: 3
D33: Frank Krumbiegel | E33: Classe A | G33: 1 | H33: 3 | I33: 55 | J33: =(G33*3600+H33*60+I33) -> 3835 | K33: 1.002 | L33: =J33/K33 -> 3827.345309 | N33: 4
D34: Alex Lago | E34: FX One | G34: 0 | H34: 0 | I34: 0 | J34: =(G34*3600+H34*60+I34) -> 0 | K34: 1.84 | L34: =J34/K34 -> 0 | N34: 5
D35: Tono | E35: Topcat k2 classic | G35: 0 | H35: 0 | I35: 0 | J35: =(G35*3600+H35*60+I35) -> 0 | K35: 1.84 | L35: =J35/K35 -> 0 | N35: 6
D39: RATINGS | G39: TEMPS REGATA | J39: TEMPS | K39: RATING | L39: TEMPS | M39: RESULTAT
G40: HORES | H40: MINUTS | I40: SEGONS | J40: Segons | L40: COMP
G41: Hores | H41: Minuts | I41: Segons
D42: Tono | E42: Topcat k2 classic | G42: 1 | H42: 0 | I42: 0 | J42: =(G42*3600+H42*60+I42) -> 3600 | K42: 1.18 | L42: =J42/K42 -> 3050.847458 | N42: 1
D43: Adolfo Jimenez | E43: Dart 15 / Srint 15 DX | G43: 1 | H43: 2 | I43: 0 | J43: =(G43*3600+H43*60+I43) -> 3720 | K43: 1.21 | L43: =J43/K43 -> 3074.380165 | N43: 2
D44: Albert Girones / Ivan Garcia | E44: Hobie Tiger | G44: 0 | H44: 51 | I44: 58 | J44: =(G44*3600+H44*60+I44) -> 3118 | K44: 1 | L44: =J44/K44 -> 3118 | N44: 3
D45: Alex Lago | E45: FX One | G45: 1 | H45: 0 | I45: 0 | J45: =(G45*3600+H45*60+I45) -> 3600 | K45: 1.084 | L45: =J45/K45 -> 3321.03321 | N45: 4
D46: Frank Krumbiegel | E46: Classe A | G46: 1 | H46: 20 | I46: 0 | J46: =(G46*3600+H46*60+I46) -> 4800 | K46: 1.002 | L46: =J46/K46 -> 4790.419162 | N46: 5
D47: DAVID MARTINEZ | E47: Classe A | G47: 0 | H47: 0 | I47: 0 | J47: =(G47*3600+H47*60+I47) -> 0 | K47: 1.002 | L47: =J47/K47 -> 0 | N47: 6

Sheet MONO
B2: Classificació XIII Trofeu GERARDO
F3: Classe: MONOBUCS
F5: Prova nº | G5: 1 | I5: 2
F6: Vent (Bf.) | G6: 1 / 2 | I6: 1 / 2
F7: Sortits | G7: 1 | I7: 2
F8: Data | G8: 2017-04-15 | I8: 2017-04-16
B9: Pos. | C9: Nº vela | D9: Patró / Tripulant | E9: Embarcacio | F9: Club | G9: Lloc | H9: Punts | I9: Lloc | J9: Punts | K9: Total
B10: 1 | C10: 189281 | D10: Fabio Ortiz | E10: Laser | F10: Club Nàutic de Sitges | G10: 2 | H10: 2 | I10: 1 | J10: 1 | K10: =+H10+J10 -> 3
B11: 2 | C11: 208716 | D11: Ona Pascual | E11: Laser | F11: Club Nàutic de Sitges | G11: 1 | H11: 1 | I11: 2 | J11: 2 | K11: =+H11+J11 -> 3
B12: 3 | C12: 198344 | D12: Nil Mercadé | E12: Laser | F12: Club Nàutic de Sitges | G12: 3 | H12: 3 | I12: 3 | J12: 3 | K12: =+H12+J12 -> 6
B13: =B12+1 -> 4 | C13: 157648 | D13: Jordi Vilardell | E13: Laser Radial | F13: Club Nàutic de Sitges | G13: 4 | H13: 4 | I13: 4 | J13: 4 | K13: =+H13+J13 -> 8
B14: =B13+1 -> 5 | C14: 193160 | D14: Katrin Nauman | E14: Laser Radial | F14: Club Nàutic de Sitges | G14: 5 | H14: 5 | I14: 5 | J14: 5 | K14: =+H14+J14 -> 10
B15: =B14+1 -> 6 | D15: Álex Lázaro | E15: Laser / Pico | F15: Club Nàutic de Sitges | G15: 6 | H15: 6 | I15: 7 | J15: 7 | K15: =+H15+J15 -> 13
B16: =B15+1 -> 7 | C16: 1 | D16: Marta Figueras | E16: Laser / Pico | F16: Club Nàutic de Sitges | G16: 8 | H16: 8 | I16: 6 | J16: 6 | K16: =+H16+J16 -> 14
B17: =B16+1 -> 8 | D17: Nico Ros | E17: Pico | G17: 7 | H17: 7 | I17: DNS | J17: 9 | K17: =+H17+J17 -> 16
B19: En caso de empate
C20: 1 | D20: El que tingui millor resultat en qualsevol de les proves
C21: 2 | D21: Si continua l'empat, el que hagi realitzat millor possició a la darrera prova
